[Event "Early-Titled-Tuesday-Blitz-May-14-2024"]
[Site "Chess.com"]
[Date "2024.05.14"]
[Round "1"]
[White "Nitzan_Steinberg"]
[Black "Hananmo"]
[Result "1-0"]
[WhiteElo "2957"]
[BlackElo "2529"]
[TimeControl "180+1"]
[EndTime "8:05:02 PDT"]
[Termination "Nitzan_Steinberg won by resignation"]

1. e4 {[%clk 0:03:00.9]} 1... c5 {[%clk 0:02:58]} 2. Nf3 {[%clk 0:03:01]} 2...
d6 {[%clk 0:02:57.3]} 3. Nc3 {[%clk 0:02:57.6]} 3... Nf6 {[%clk 0:02:54.8]} 4.
e5 {[%clk 0:02:57.8]} 4... dxe5 {[%clk 0:02:54.7]} 5. Nxe5 {[%clk 0:02:58.7]}
5... Nfd7 {[%clk 0:02:54.9]} 6. Nc4 {[%clk 0:02:46.3]} 6... Nc6 {[%clk
0:02:49.9]} 7. g3 {[%clk 0:02:46.4]} 7... Nb6 {[%clk 0:02:44.2]} 8. Nxb6 {[%clk
0:02:45.6]} 8... axb6 {[%clk 0:02:45.1]} 9. Bg2 {[%clk 0:02:44.2]} 9... e5
{[%clk 0:02:43.8]} 10. d3 {[%clk 0:02:44.5]} 10... Bd6 {[%clk 0:02:42.7]} 11.
O-O {[%clk 0:02:44.8]} 11... O-O {[%clk 0:02:42.9]} 12. Re1 {[%clk 0:02:45.2]}
12... Re8 {[%clk 0:02:42.7]} 13. b3 {[%clk 0:02:41.2]} 13... Nd4 {[%clk
0:02:36.8]} 14. Bb2 {[%clk 0:02:40.4]} 14... b5 {[%clk 0:02:31.8]} 15. h4 {[%clk
0:02:18.5]} 15... b4 {[%clk 0:02:29.9]} 16. Ne4 {[%clk 0:02:18.3]} 16... Bf8
{[%clk 0:02:30.4]} 17. Nd2 {[%clk 0:02:12.3]} 17... Ra7 {[%clk 0:02:25.3]} 18.
Nc4 {[%clk 0:02:08.1]} 18... Qc7 {[%clk 0:02:12.6]} 19. f4 {[%clk 0:01:56.4]}
19... Bd6 {[%clk 0:01:49.6]} 20. Bxd4 {[%clk 0:01:20.8]} 20... cxd4 {[%clk
0:01:48.9]} 21. Qd2 {[%clk 0:01:19.7]} 21... b5 {[%clk 0:01:24.5]} 22. fxe5
{[%clk 0:01:09.8]} 22... Bxe5 {[%clk 0:01:14.5]} 23. Nxe5 {[%clk 0:01:09.9]}
23... Rxe5 {[%clk 0:01:15.4]} 24. Rxe5 {[%clk 0:01:10.2]} 24... Qxe5 {[%clk
0:01:16.3]} 25. Re1 {[%clk 0:01:10.8]} 1-0

[Event "Early-Titled-Tuesday-Blitz-May-14-2024"]
[Site "Chess.com"]
[Date "2024.05.14"]
[Round "1"]
[White "ulises2013"]
[Black "LLariMarc"]
[Result "1-0"]
[WhiteElo "2923"]
[BlackElo "2523"]
[TimeControl "180+1"]
[EndTime "8:05:19 PDT"]
[Termination "ulises2013 won by resignation"]

1. e4 {[%clk 0:02:58]} 1... c6 {[%clk 0:02:57.5]} 2. g3 {[%clk 0:02:58.1]} 2...
d5 {[%clk 0:02:58.4]} 3. Bg2 {[%clk 0:02:58.9]} 3... e5 {[%clk 0:02:52.1]} 4.
exd5 {[%clk 0:02:58.7]} 4... cxd5 {[%clk 0:02:51.5]} 5. d4 {[%clk 0:02:59.2]}
5... e4 {[%clk 0:02:47.1]} 6. Ne2 {[%clk 0:02:59.1]} 6... Nc6 {[%clk 0:02:44.4]}
7. O-O {[%clk 0:02:58.9]} 7... Nf6 {[%clk 0:02:42.1]} 8. c4 {[%clk 0:02:56.5]}
8... dxc4 {[%clk 0:02:36.3]} 9. Nbc3 {[%clk 0:02:56.7]} 9... Be7 {[%clk
0:02:28.3]} 10. Qa4 {[%clk 0:02:47.6]} 10... O-O {[%clk 0:02:26]} 11. Qxc4
{[%clk 0:02:40]} 11... Be6 {[%clk 0:02:19.8]} 12. Qa4 {[%clk 0:02:40.2]} 12...
Bd5 {[%clk 0:01:59.2]} 13. Nxd5 {[%clk 0:02:33.8]} 13... Qxd5 {[%clk 0:01:54.7]}
14. Be3 {[%clk 0:02:33.5]} 14... b5 {[%clk 0:01:38.3]} 15. Qb3 {[%clk
0:02:22.4]} 15... Qxb3 {[%clk 0:01:35.6]} 16. axb3 {[%clk 0:02:23.3]} 16... Rfd8
{[%clk 0:01:10.2]} 17. Rfc1 {[%clk 0:02:15.4]} 17... Nb4 {[%clk 0:01:04.1]} 18.
Nc3 {[%clk 0:02:10.7]} 18... Nbd5 {[%clk 0:00:48.3]} 19. Nxe4 {[%clk 0:02:03.7]}
19... Rac8 {[%clk 0:00:38.2]} 20. Rxc8 {[%clk 0:02:01.5]} 20... Rxc8 {[%clk
0:00:39.1]} 21. Nxf6+ {[%clk 0:01:55.8]} 21... Nxf6 {[%clk 0:00:37.3]} 22. Rxa7
{[%clk 0:01:56.2]} 22... Bd6 {[%clk 0:00:31.5]} 23. h3 {[%clk 0:01:54.2]} 23...
b4 {[%clk 0:00:28]} 24. Bf1 {[%clk 0:01:51.1]} 24... Rc7 {[%clk 0:00:11.5]} 25.
Ra8+ {[%clk 0:01:50.2]} 25... Bf8 {[%clk 0:00:11.7]} 26. Bc4 {[%clk 0:01:49.3]}
26... g6 {[%clk 0:00:11.1]} 27. Bh6 {[%clk 0:01:46]} 27... Nd7 {[%clk
0:00:11.3]} 28. Bb5 {[%clk 0:01:43.6]} 28... f6 {[%clk 0:00:09.7]} 29. Bxd7
{[%clk 0:01:43.2]} 1-0

[Event "Early-Titled-Tuesday-Blitz-May-14-2024"]
[Site "Chess.com"]
[Date "2024.05.14"]
[Round "1"]
[White "artin10862"]
[Black "Art10ECHR"]
[Result "1-0"]
[WhiteElo "2866"]
[BlackElo "2501"]
[TimeControl "180+1"]
[EndTime "8:05:27 PDT"]
[Termination "artin10862 won by checkmate"]

1. Nf3 {[%clk 0:02:54.3]} 1... d5 {[%clk 0:02:59.7]} 2. g3 {[%clk 0:02:53.9]}
2... Nf6 {[%clk 0:02:58.2]} 3. Bg2 {[%clk 0:02:53.6]} 3... c5 {[%clk 0:02:58.9]}
4. O-O {[%clk 0:02:49.6]} 4... Nc6 {[%clk 0:02:59.5]} 5. b3 {[%clk 0:02:49.3]}
5... e5 {[%clk 0:02:58.9]} 6. Bb2 {[%clk 0:02:49.3]} 6... Bd6 {[%clk 0:02:58.2]}
7. d3 {[%clk 0:02:49.1]} 7... O-O {[%clk 0:02:57.7]} 8. Nbd2 {[%clk 0:02:49.4]}
8... a6 {[%clk 0:02:49]} 9. a4 {[%clk 0:02:47.9]} 9... Bc7 {[%clk 0:02:44.1]}
10. e4 {[%clk 0:02:47]} 10... d4 {[%clk 0:02:42]} 11. Nc4 {[%clk 0:02:46.9]}
11... Bd7 {[%clk 0:02:34.7]} 12. a5 {[%clk 0:02:41.7]} 12... Re8 {[%clk
0:02:27.3]} 13. Qe1 {[%clk 0:02:33.2]} 13... Be6 {[%clk 0:02:24.8]} 14. Bc1
{[%clk 0:02:30.3]} 14... Bxc4 {[%clk 0:02:23.6]} 15. bxc4 {[%clk 0:02:29.5]}
15... Bxa5 {[%clk 0:02:23.4]} 16. Qe2 {[%clk 0:02:29.7]} 16... Bc3 {[%clk
0:02:22.3]} 17. Rb1 {[%clk 0:02:27.4]} 17... Nb4 {[%clk 0:02:22.7]} 18. Nh4
{[%clk 0:02:26.9]} 18... a5 {[%clk 0:02:12.5]} 19. f4 {[%clk 0:02:21.4]} 19...
Nd7 {[%clk 0:02:06.3]} 20. Nf5 {[%clk 0:02:18.2]} 20... Ra6 {[%clk 0:01:48.2]}
21. h4 {[%clk 0:02:14.1]} 21... a4 {[%clk 0:01:36.6]} 22. Ba3 {[%clk 0:02:10.2]}
22... Nf8 {[%clk 0:01:33.4]} 23. h5 {[%clk 0:02:09.3]} 23... exf4 {[%clk
0:01:30.2]} 24. gxf4 {[%clk 0:02:07.3]} 24... Ne6 {[%clk 0:01:16.6]} 25. Qg4
{[%clk 0:02:03.8]} 25... Kh8 {[%clk 0:01:13.7]} 26. e5 {[%clk 0:02:03.6]} 26...
Qc7 {[%clk 0:01:05.7]} 27. Be4 {[%clk 0:02:01.2]} 27... Rb6 {[%clk 0:00:55.6]}
28. Bc1 {[%clk 0:01:51.4]} 28... Nxc2 {[%clk 0:00:50.5]} 29. Rxb6 {[%clk
0:01:50.1]} 29... Qxb6 {[%clk 0:00:50.4]} 30. Nd6 {[%clk 0:01:50.8]} 30... Rf8
{[%clk 0:00:41.3]} 31. Qf5 {[%clk 0:01:40.2]} 31... g6 {[%clk 0:00:41]} 32.
Nxf7+ {[%clk 0:01:39.8]} 32... Kg8 {[%clk 0:00:33.4]} 33. hxg6 {[%clk
0:01:39.8]} 33... hxg6 {[%clk 0:00:32.3]} 34. Qxg6+ {[%clk 0:01:39.4]} 34... Ng7
{[%clk 0:00:31.9]} 35. Nh6+ {[%clk 0:01:39.7]} 35... Kh8 {[%clk 0:00:31.1]} 36.
Qh7# {[%clk 0:01:40.4]} 1-0

[Event "Early-Titled-Tuesday-Blitz-May-14-2024"]
[Site "Chess.com"]
[Date "2024.05.14"]
[Round "1"]
[White "NiranjanNavalgund"]
[Black "ViIIagra"]
[Result "0-1"]
[WhiteElo "2486"]
[BlackElo "2843"]
[TimeControl "180+1"]
[EndTime "8:05:27 PDT"]
[Termination "ViIIagra won by checkmate"]

1. Nf3 {[%clk 0:03:00.9]} 1... d6 {[%clk 0:02:58]} 2. e4 {[%clk 0:02:59.7]} 2...
e5 {[%clk 0:02:56.4]} 3. d4 {[%clk 0:02:58.8]} 3... exd4 {[%clk 0:02:57.3]} 4.
Nxd4 {[%clk 0:02:58.3]} 4... Nf6 {[%clk 0:02:57.9]} 5. Nc3 {[%clk 0:02:58.8]}
5... Be7 {[%clk 0:02:57.5]} 6. Bf4 {[%clk 0:02:59.1]} 6... O-O {[%clk
0:02:57.4]} 7. Qd2 {[%clk 0:02:58.2]} 7... Nc6 {[%clk 0:02:57.4]} 8. O-O-O
{[%clk 0:02:56.4]} 8... Nd7 {[%clk 0:02:56.4]} 9. f3 {[%clk 0:02:55.9]} 9... Bf6
{[%clk 0:02:55.7]} 10. Be3 {[%clk 0:02:50.8]} 10... Nb6 {[%clk 0:02:27.5]} 11.
g4 {[%clk 0:02:46.9]} 11... Re8 {[%clk 0:02:24.3]} 12. g5 {[%clk 0:02:39.7]}
12... Bxd4 {[%clk 0:02:22.7]} 13. Bxd4 {[%clk 0:02:39.6]} 13... Nxd4 {[%clk
0:02:23.6]} 14. Qxd4 {[%clk 0:02:40.1]} 14... Qxg5+ {[%clk 0:02:24.2]} 15. Kb1
{[%clk 0:02:40.6]} 15... Qf6 {[%clk 0:02:16.2]} 16. Qxf6 {[%clk 0:02:39.8]}
16... gxf6 {[%clk 0:02:17.1]} 17. Rg1+ {[%clk 0:02:31.9]} 17... Kf8 {[%clk
0:02:17.1]} 18. Nb5 {[%clk 0:02:32.5]} 18... Re7 {[%clk 0:02:15.5]} 19. Bd3
{[%clk 0:02:31.8]} 19... a6 {[%clk 0:02:12.9]} 20. Nc3 {[%clk 0:02:31.6]} 20...
Re5 {[%clk 0:02:09.7]} 21. Rg3 {[%clk 0:02:31.6]} 21... Rh5 {[%clk 0:02:09.6]}
22. Rdg1 {[%clk 0:02:31.4]} 22... Rxh2 {[%clk 0:02:07.5]} 23. Rg8+ {[%clk
0:02:31.1]} 23... Ke7 {[%clk 0:02:08.2]} 24. b3 {[%clk 0:02:26.8]} 24... Be6
{[%clk 0:02:07.9]} 25. R8g7 {[%clk 0:02:24.7]} 25... Rh6 {[%clk 0:02:07.2]} 26.
f4 {[%clk 0:02:24.8]} 26... Rg6 {[%clk 0:02:06]} 27. R1xg6 {[%clk 0:02:24.1]}
27... hxg6 {[%clk 0:02:06.9]} 28. f5 {[%clk 0:02:23.5]} 28... gxf5 {[%clk
0:02:07.8]} 29. exf5 {[%clk 0:02:22.6]} 29... Bd5 {[%clk 0:02:06.8]} 30. Nxd5+
{[%clk 0:02:14.2]} 30... Nxd5 {[%clk 0:02:06.8]} 31. Bc4 {[%clk 0:02:14.3]}
31... c6 {[%clk 0:02:01.7]} 32. Kb2 {[%clk 0:02:13.9]} 32... Rh8 {[%clk
0:01:59.2]} 33. a4 {[%clk 0:02:10.6]} 33... Kf8 {[%clk 0:01:54.7]} 34. Rg1
{[%clk 0:02:07]} 34... Nc7 {[%clk 0:01:51.6]} 35. Bd3 {[%clk 0:02:05.4]} 35...
Rg8 {[%clk 0:01:51.6]} 36. Re1 {[%clk 0:02:04.4]} 36... Rg4 {[%clk 0:01:49.9]}
37. c4 {[%clk 0:02:04.1]} 37... a5 {[%clk 0:01:50]} 38. Kc3 {[%clk 0:02:03.9]}
38... Na6 {[%clk 0:01:50.6]} 39. Bb1 {[%clk 0:02:02.1]} 39... Rg3+ {[%clk
0:01:50.9]} 40. Kb2 {[%clk 0:02:01.7]} 40... Nc5 {[%clk 0:01:50.7]} 41. Bc2
{[%clk 0:01:59.9]} 41... Rxb3+ {[%clk 0:01:50.9]} 42. Ka2 {[%clk 0:01:56.3]}
42... Rc3 {[%clk 0:01:50.4]} 43. Kb2 {[%clk 0:01:52.1]} 43... Rxc4 {[%clk
0:01:50.6]} 44. Rh1 {[%clk 0:01:51.5]} 44... Nxa4+ {[%clk 0:01:48.4]} 45. Kb3
{[%clk 0:01:51.7]} 45... Rb4+ {[%clk 0:01:48.6]} 46. Ka3 {[%clk 0:01:51.7]}
46... Nb6 {[%clk 0:01:49.4]} 47. Bd3 {[%clk 0:01:50.5]} 47... Nc4+ {[%clk
0:01:49.1]} 48. Ka2 {[%clk 0:01:50.7]} 48... Ne5 {[%clk 0:01:49.7]} 49. Bc2
{[%clk 0:01:50.2]} 49... d5 {[%clk 0:01:50.4]} 50. Rh8+ {[%clk 0:01:49.5]} 50...
Ke7 {[%clk 0:01:51.2]} 51. Ra8 {[%clk 0:01:49.9]} 51... d4 {[%clk 0:01:52]} 52.
Rxa5 {[%clk 0:01:49.5]} 52... d3 {[%clk 0:01:52.7]} 53. Bd1 {[%clk 0:01:49.1]}
53... d2 {[%clk 0:01:53.3]} 54. Ra3 {[%clk 0:01:47.9]} 54... c5 {[%clk
0:01:51.7]} 55. Ra7 {[%clk 0:01:45.2]} 55... c4 {[%clk 0:01:50.9]} 56. Ka3
{[%clk 0:01:43.5]} 56... Rb1 {[%clk 0:01:50.5]} 57. Bh5 {[%clk 0:01:41.1]} 57...
Ra1+ {[%clk 0:01:50.8]} 58. Kb2 {[%clk 0:01:40.7]} 58... Rxa7 {[%clk 0:01:51.7]}
59. Kc2 {[%clk 0:01:41.1]} 59... Ra2+ {[%clk 0:01:52]} 60. Kd1 {[%clk
0:01:41.3]} 60... c3 {[%clk 0:01:52.4]} 61. Ke2 {[%clk 0:01:41.9]} 61... b5
{[%clk 0:01:52.8]} 62. Ke3 {[%clk 0:01:41.7]} 62... b4 {[%clk 0:01:53.3]} 63.
Bd1 {[%clk 0:01:42.4]} 63... Rb2 {[%clk 0:01:54.2]} 64. Kd4 {[%clk 0:01:42.4]}
64... Kd6 {[%clk 0:01:55.1]} 65. Bc2 {[%clk 0:01:39]} 65... Ra2 {[%clk
0:01:55.1]} 66. Bd1 {[%clk 0:01:39.2]} 66... Ra1 {[%clk 0:01:55.6]} 67. Ke4
{[%clk 0:01:36.8]} 67... Rxd1 {[%clk 0:01:54.4]} 68. Kd4 {[%clk 0:01:37.4]}
68... Rg1 {[%clk 0:01:54.2]} 69. Ke4 {[%clk 0:01:37.1]} 69... d1=Q {[%clk
0:01:54.5]} 70. Ke3 {[%clk 0:01:37.6]} 70... Qd2+ {[%clk 0:01:54.6]} 71. Ke4
{[%clk 0:01:38]} 71... Rg4# {[%clk 0:01:54.9]} 0-1

[Event "Early-Titled-Tuesday-Blitz-May-14-2024"]
[Site "Chess.com"]
[Date "2024.05.14"]
[Round "1"]
[White "Massakru"]
[Black "Adar_07"]
[Result "0-1"]
[WhiteElo "2404"]
[BlackElo "2729"]
[TimeControl "180+1"]
[EndTime "8:05:28 PDT"]
[Termination "Adar_07 won by checkmate"]

1. e4 {[%clk 0:03:00.9]} 1... c6 {[%clk 0:02:54]} 2. d4 {[%clk 0:03:00.5]} 2...
d5 {[%clk 0:02:54.9]} 3. f3 {[%clk 0:03:00.9]} 3... e6 {[%clk 0:02:53.1]} 4. Bd3
{[%clk 0:02:56.5]} 4... dxe4 {[%clk 0:02:51.2]} 5. fxe4 {[%clk 0:02:56.7]} 5...
Qxd4 {[%clk 0:02:50.3]} 6. Nf3 {[%clk 0:02:56.8]} 6... Qb6 {[%clk 0:02:49.3]} 7.
e5 {[%clk 0:02:56.9]} 7... Ne7 {[%clk 0:02:48.5]} 8. Nbd2 {[%clk 0:02:54]} 8...
Nd5 {[%clk 0:02:33.1]} 9. Nc4 {[%clk 0:02:51.7]} 9... Qc7 {[%clk 0:02:32.7]} 10.
O-O {[%clk 0:02:41.3]} 10... b5 {[%clk 0:02:32.8]} 11. Nd6+ {[%clk 0:02:33.5]}
11... Bxd6 {[%clk 0:02:31.5]} 12. exd6 {[%clk 0:02:34.4]} 12... Qxd6 {[%clk
0:02:32.4]} 13. Ng5 {[%clk 0:02:30.4]} 13... Nf6 {[%clk 0:02:18.4]} 14. Nxf7
{[%clk 0:01:08.4]} 14... Kxf7 {[%clk 0:02:13.3]} 15. Qh5+ {[%clk 0:00:46.1]}
15... Ke7 {[%clk 0:02:12]} 16. Qg5 {[%clk 0:00:46.1]} 16... Rf8 {[%clk
0:02:03.3]} 17. Qxg7+ {[%clk 0:00:41.4]} 17... Rf7 {[%clk 0:02:03]} 18. Qg5
{[%clk 0:00:36.2]} 18... Nd7 {[%clk 0:01:58.9]} 19. Bf4 {[%clk 0:00:34.3]} 19...
Qc5+ {[%clk 0:01:58.4]} 20. Kh1 {[%clk 0:00:30.3]} 20... Qxg5 {[%clk 0:01:57.9]}
21. Bxg5 {[%clk 0:00:31.2]} 21... Bb7 {[%clk 0:01:54.3]} 22. Rae1 {[%clk
0:00:27.9]} 22... Rg8 {[%clk 0:01:50.5]} 23. Bh4 {[%clk 0:00:21.7]} 23... c5
{[%clk 0:01:50.3]} 24. Rf2 {[%clk 0:00:17.9]} 24... c4 {[%clk 0:01:48.4]} 25.
Bf1 {[%clk 0:00:12.6]} 25... Bd5 {[%clk 0:01:45.7]} 26. Rd2 {[%clk 0:00:12.2]}
26... Kd6 {[%clk 0:01:43.1]} 27. Bg3+ {[%clk 0:00:12.5]} 27... Kc6 {[%clk
0:01:43]} 28. b3 {[%clk 0:00:11.9]} 28... Ne4 {[%clk 0:01:40.9]} 29. Rxe4 {[%clk
0:00:09.1]} 29... Bxe4 {[%clk 0:01:41.8]} 30. Rd6+ {[%clk 0:00:09.3]} 30... Kb7
{[%clk 0:01:42.4]} 31. bxc4 {[%clk 0:00:07.9]} 31... Rxf1# {[%clk 0:01:42.4]}
0-1

[Event "Early-Titled-Tuesday-Blitz-May-14-2024"]
[Site "Chess.com"]
[Date "2024.05.14"]
[Round "1"]
[White "ViktoriyaTarasova"]
[Black "AlphaGoosee"]
[Result "0-1"]
[WhiteElo "2316"]
[BlackElo "2640"]
[TimeControl "180+1"]
[EndTime "8:05:28 PDT"]
[Termination "AlphaGoosee won by resignation"]

1. d4 {[%clk 0:03:00.9]} 1... d5 {[%clk 0:02:59.9]} 2. c4 {[%clk 0:02:59.3]}
2... dxc4 {[%clk 0:03:00.6]} 3. e4 {[%clk 0:02:57.9]} 3... e5 {[%clk 0:02:59.7]}
4. Nf3 {[%clk 0:02:57.8]} 4... exd4 {[%clk 0:03:00]} 5. Bxc4 {[%clk 0:02:58.4]}
5... Nc6 {[%clk 0:03:00.7]} 6. O-O {[%clk 0:02:57.5]} 6... Be6 {[%clk
0:03:01.3]} 7. Bb5 {[%clk 0:02:56.4]} 7... Bc5 {[%clk 0:03:01.8]} 8. a3 {[%clk
0:02:56.7]} 8... Ne7 {[%clk 0:02:56.4]} 9. b4 {[%clk 0:02:56.7]} 9... Bb6 {[%clk
0:02:56.4]} 10. Bb2 {[%clk 0:02:56.9]} 10... a6 {[%clk 0:02:54.1]} 11. Ba4
{[%clk 0:02:56.5]} 11... O-O {[%clk 0:02:42.9]} 12. Nbd2 {[%clk 0:02:54.6]}
12... Ng6 {[%clk 0:02:31]} 13. Bxc6 {[%clk 0:02:48.9]} 13... bxc6 {[%clk
0:02:23.2]} 14. Rc1 {[%clk 0:02:48.7]} 14... Nf4 {[%clk 0:02:18.8]} 15. Rxc6
{[%clk 0:02:37.8]} 15... Qe8 {[%clk 0:02:08.5]} 16. Rc2 {[%clk 0:02:29.7]} 16...
d3 {[%clk 0:02:06.8]} 17. Rc1 {[%clk 0:02:17]} 17... Ne2+ {[%clk 0:02:06.5]} 18.
Kh1 {[%clk 0:02:17.7]} 18... Nxc1 {[%clk 0:02:06.8]} 19. Qxc1 {[%clk 0:02:18.3]}
19... Rd8 {[%clk 0:02:06.1]} 20. Ng5 {[%clk 0:02:05.3]} 20... f6 {[%clk
0:02:02.9]} 21. Nxe6 {[%clk 0:01:59.6]} 21... Qxe6 {[%clk 0:02:03.8]} 22. f3
{[%clk 0:01:49.4]} 22... Rfe8 {[%clk 0:01:52.4]} 23. Re1 {[%clk 0:01:48.9]}
23... Qd6 {[%clk 0:01:45]} 24. Bc3 {[%clk 0:01:45.9]} 24... Qc6 {[%clk
0:01:43.5]} 25. Qb2 {[%clk 0:01:43.7]} 25... Ba7 {[%clk 0:01:41.4]} 26. Qb3+
{[%clk 0:01:40]} 26... Qe6 {[%clk 0:01:41.4]} 27. Qb2 {[%clk 0:01:39.8]} 27...
c5 {[%clk 0:01:40.6]} 28. bxc5 {[%clk 0:01:34]} 28... Bxc5 {[%clk 0:01:41]} 29.
e5 {[%clk 0:01:22.4]} 29... Rb8 {[%clk 0:01:39.3]} 30. Qa1 {[%clk 0:01:21.9]}
30... Bf2 {[%clk 0:01:27.7]} 31. Rf1 {[%clk 0:01:20.4]} 31... Be3 {[%clk
0:01:26.4]} 32. exf6 {[%clk 0:01:07.9]} 32... Bxd2 {[%clk 0:01:25]} 33. f7+
{[%clk 0:01:05]} 33... Qxf7 {[%clk 0:01:23.4]} 34. Bxd2 {[%clk 0:01:05.7]} 34...
Re2 {[%clk 0:01:22.4]} 35. Bf4 {[%clk 0:01:00.7]} 35... Qxf4 {[%clk 0:01:17.9]}
0-1

[Event "Early-Titled-Tuesday-Blitz-May-14-2024"]
[Site "Chess.com"]
[Date "2024.05.14"]
[Round "1"]
[White "ImportedItalianMaple"]
[Black "ChEsper99"]
[Result "0-1"]
[WhiteElo "2588"]
[BlackElo "2278"]
[TimeControl "180+1"]
[EndTime "8:05:28 PDT"]
[Termination "ChEsper99 won on time"]

1. e4 {[%clk 0:02:56.7]} 1... c6 {[%clk 0:02:58.8]} 2. Nf3 {[%clk 0:02:56.9]}
2... d5 {[%clk 0:02:59.1]} 3. exd5 {[%clk 0:02:46.8]} 3... cxd5 {[%clk 0:03:00]}
4. Bb5+ {[%clk 0:02:46.9]} 4... Nc6 {[%clk 0:02:57.1]} 5. Ne5 {[%clk 0:02:44.3]}
5... Bd7 {[%clk 0:02:57.5]} 6. d4 {[%clk 0:02:42.9]} 6... Nxe5 {[%clk
0:02:53.8]} 7. Be2 {[%clk 0:02:40.1]} 7... Nc6 {[%clk 0:02:53.5]} 8. O-O {[%clk
0:02:40.7]} 8... g6 {[%clk 0:02:52.5]} 9. c3 {[%clk 0:02:41.6]} 9... Bg7 {[%clk
0:02:52.9]} 10. h4 {[%clk 0:02:41.9]} 10... h5 {[%clk 0:02:48.2]} 11. Bg5 {[%clk
0:02:41.3]} 11... Nf6 {[%clk 0:02:48.2]} 12. Nd2 {[%clk 0:02:42.2]} 12... O-O
{[%clk 0:02:47.6]} 13. Nf3 {[%clk 0:02:43.1]} 13... Bg4 {[%clk 0:02:47]} 14. Ne5
{[%clk 0:02:42.9]} 14... Bxe2 {[%clk 0:02:17.5]} 15. Qxe2 {[%clk 0:02:42.8]}
15... Nxe5 {[%clk 0:02:17.8]} 16. dxe5 {[%clk 0:02:43.5]} 16... Ne4 {[%clk
0:02:17.9]} 17. Bf4 {[%clk 0:02:44.1]} 17... e6 {[%clk 0:02:12.8]} 18. f3 {[%clk
0:02:44.5]} 18... Nc5 {[%clk 0:02:08.9]} 19. Bg5 {[%clk 0:02:44.2]} 19... Qb6
{[%clk 0:02:04.3]} 20. Kh2 {[%clk 0:02:44.7]} 20... a5 {[%clk 0:01:59.1]} 21. g4
{[%clk 0:02:45]} 21... hxg4 {[%clk 0:01:54.5]} 22. fxg4 {[%clk 0:02:45.9]} 22...
Qc7 {[%clk 0:01:53.6]} 23. Bf4 {[%clk 0:02:43.1]} 23... Ne4 {[%clk 0:01:46.6]}
24. h5 {[%clk 0:02:35.2]} 24... Bxe5 {[%clk 0:01:44.6]} 25. Qe3 {[%clk
0:02:17.4]} 25... Bxf4+ {[%clk 0:01:42.3]} 26. Rxf4 {[%clk 0:02:18.3]} 26... g5
{[%clk 0:01:36.9]} 0-1

[Event "Early-Titled-Tuesday-Blitz-May-14-2024"]
[Site "Chess.com"]
[Date "2024.05.14"]
[Round "1"]
[White "only_strong_moves"]
[Black "patzer-reloaded"]
[Result "1-0"]
[WhiteElo "2710"]
[BlackElo "2394"]
[TimeControl "180+1"]
[EndTime "8:05:32 PDT"]
[Termination "only_strong_moves won by resignation"]

1. Nc3 {[%clk 0:03:00.9]} 1... d5 {[%clk 0:02:58.2]} 2. e4 {[%clk 0:03:00.7]}
2... e6 {[%clk 0:02:56.7]} 3. d4 {[%clk 0:03:00.4]} 3... Be7 {[%clk 0:02:27.3]}
4. Nf3 {[%clk 0:02:59.1]} 4... a6 {[%clk 0:02:22.1]} 5. Bd3 {[%clk 0:02:55.5]}
5... c5 {[%clk 0:02:07.5]} 6. exd5 {[%clk 0:02:55.1]} 6... exd5 {[%clk
0:02:02.3]} 7. dxc5 {[%clk 0:02:55.6]} 7... Nf6 {[%clk 0:01:51.3]} 8. O-O {[%clk
0:02:55.8]} 8... O-O {[%clk 0:01:50.9]} 9. Be3 {[%clk 0:02:55.8]} 9... Bg4
{[%clk 0:01:42.7]} 10. h3 {[%clk 0:02:54.5]} 10... Bh5 {[%clk 0:01:41.5]} 11.
Bd4 {[%clk 0:02:54.1]} 11... Nc6 {[%clk 0:01:39.2]} 12. Bxf6 {[%clk 0:02:52]}
12... Bxf6 {[%clk 0:01:38.7]} 13. Nxd5 {[%clk 0:02:52.6]} 13... Bxb2 {[%clk
0:01:01.1]} 14. Rb1 {[%clk 0:02:52]} 14... Ba3 {[%clk 0:01:01.2]} 15. Rxb7
{[%clk 0:02:43.3]} 15... Bxc5 {[%clk 0:00:59.9]} 16. Be4 {[%clk 0:02:34.1]}
16... Ra7 {[%clk 0:00:52.8]} 17. Rxa7 {[%clk 0:02:32.1]} 17... Bxa7 {[%clk
0:00:51.5]} 18. Nf4 {[%clk 0:02:25.5]} 18... Bxf3 {[%clk 0:00:45.7]} 19. Qxf3
{[%clk 0:02:24]} 19... Nd4 {[%clk 0:00:44.7]} 20. Qd3 {[%clk 0:02:22]} 20... g6
{[%clk 0:00:36.9]} 21. Nd5 {[%clk 0:02:15.4]} 21... Re8 {[%clk 0:00:32.8]} 22.
Rd1 {[%clk 0:02:09.3]} 22... Re5 {[%clk 0:00:30.5]} 23. c3 {[%clk 0:02:03.9]}
23... Ne6 {[%clk 0:00:29.5]} 24. Qf3 {[%clk 0:01:54.9]} 24... Kg7 {[%clk
0:00:23]} 25. h4 {[%clk 0:01:47.7]} 25... Nc5 {[%clk 0:00:18.7]} 26. Bc2 {[%clk
0:01:39.6]} 26... Qd6 {[%clk 0:00:16.9]} 27. Ne3 {[%clk 0:01:38]} 27... Qe7
{[%clk 0:00:14.8]} 28. Qg3 {[%clk 0:01:30.8]} 28... Ne4 {[%clk 0:00:12.9]} 29.
Bxe4 {[%clk 0:01:31.1]} 29... Rxe4 {[%clk 0:00:13.6]} 30. Nf5+ {[%clk
0:01:31.4]} 1-0

[Event "Early-Titled-Tuesday-Blitz-May-14-2024"]
[Site "Chess.com"]
[Date "2024.05.14"]
[Round "1"]
[White "komogro"]
[Black "xxysoul6"]
[Result "0-1"]
[WhiteElo "2534"]
[BlackElo "2980"]
[TimeControl "180+1"]
[EndTime "8:05:36 PDT"]
[Termination "xxysoul6 won by resignation"]

1. Nf3 {[%clk 0:02:55.2]} 1... Nf6 {[%clk 0:02:54.6]} 2. b3 {[%clk 0:02:54.5]}
2... b6 {[%clk 0:02:50.9]} 3. Bb2 {[%clk 0:02:54.7]} 3... Bb7 {[%clk 0:02:48.5]}
4. e3 {[%clk 0:02:52.2]} 4... e6 {[%clk 0:02:43.8]} 5. c4 {[%clk 0:02:50.8]}
5... Be7 {[%clk 0:02:34.7]} 6. Nc3 {[%clk 0:02:50.2]} 6... O-O {[%clk
0:02:28.3]} 7. g3 {[%clk 0:02:49.6]} 7... c5 {[%clk 0:02:27.3]} 8. Bg2 {[%clk
0:02:47.4]} 8... Nc6 {[%clk 0:02:21.9]} 9. O-O {[%clk 0:02:45.9]} 9... Qc7
{[%clk 0:02:00.5]} 10. Qe2 {[%clk 0:02:43.3]} 10... Rfd8 {[%clk 0:01:59.8]} 11.
Rfd1 {[%clk 0:02:40.5]} 11... d5 {[%clk 0:02:00]} 12. cxd5 {[%clk 0:02:27.3]}
12... Nxd5 {[%clk 0:02:00]} 13. Nxd5 {[%clk 0:02:27]} 13... Rxd5 {[%clk
0:01:59.9]} 14. Rac1 {[%clk 0:02:14.6]} 14... Rd7 {[%clk 0:01:54.6]} 15. d4
{[%clk 0:02:12.6]} 15... Rad8 {[%clk 0:01:54]} 16. h4 {[%clk 0:02:06]} 16... h6
{[%clk 0:01:53.1]} 17. dxc5 {[%clk 0:01:54.9]} 17... Rxd1+ {[%clk 0:01:51.7]}
18. Rxd1 {[%clk 0:01:55.8]} 18... Bxc5 {[%clk 0:01:50.7]} 19. a3 {[%clk
0:01:52.2]} 19... Rxd1+ {[%clk 0:01:42]} 20. Qxd1 {[%clk 0:01:51.9]} 20... Qd8
{[%clk 0:01:33.7]} 21. Qc2 {[%clk 0:01:33.8]} 21... Bf8 {[%clk 0:01:31.1]} 22.
Ne5 {[%clk 0:01:29.3]} 22... Nxe5 {[%clk 0:01:25.7]} 23. Bxb7 {[%clk 0:01:28.4]}
23... Qd3 {[%clk 0:01:25]} 24. Be4 {[%clk 0:01:20.2]} 24... Nf3+ {[%clk
0:01:24.5]} 25. Kg2 {[%clk 0:00:36.5]} 25... Ne1+ {[%clk 0:01:24]} 26. Kg1
{[%clk 0:00:36.8]} 26... Qxc2 {[%clk 0:01:23.1]} 27. Bxc2 {[%clk 0:00:36.7]}
27... Nxc2 {[%clk 0:01:24]} 28. a4 {[%clk 0:00:34.8]} 28... Nb4 {[%clk
0:01:22.1]} 0-1